bitfinex/quotes_BTCUSD_20230114
["timestamp","ask_amount","ask_price","bid_price","bid_amount"]
[1673665114371,0.205231,20957.0,20955.0,0.17959277]
[1673665114608,0.00579344,20958.0,20955.0,0.17959277]
[1673665115326,0.00579344,20958.0,20955.0,0.26959277]
[1673665116042,0.32653644,20958.0,20955.0,0.26959277]
[1673665116289,0.205231,20957.0,20955.0,0.26959277]
[1673665116549,0.00579344,20958.0,20955.0,0.26959277]
[1673665117551,0.00579344,20958.0,20956.0,0.17519257]
[1673665118789,0.00579344,20958.0,20956.0,0.19419257]
[1673665119281,0.00579344,20958.0,20956.0,0.019]
[1673665119529,0.31822595,20957.0,20956.0,0.019]
[1673665119785,1.92746565,20957.0,20956.0,0.019]
[1673665120030,2.07357014,20957.0,20956.0,0.019]
[1673665120266,1.85919981,20957.0,20956.0,0.019]
[1673665120512,2.41330046,20957.0,20956.0,0.019]
[1673665120751,2.05919981,20957.0,20956.0,0.019]
[1673665120990,2.05919981,20957.0,20951.0,0.31319469]
[1673665121230,1.24431272,20957.0,20956.0,0.011]
[1673665121489,0.28583481,20957.0,20952.0,0.14291428]
[1673665121747,0.004,20957.0,20956.0,0.011]
[1673665121985,0.01640304,20959.0,20956.0,0.19468798]
[1673665122226,0.01640304,20959.0,20957.0,0.02470373]
[1673665122470,0.0105378,20959.0,20957.0,0.02470373]
[1673665122720,0.0105378,20959.0,20956.0,0.19468798]
[1673665122970,0.00568818,20958.0,20956.0,0.19468798]
[1673665123202,0.00568818,20958.0,20954.0,0.5321]
[1673665123445,0.19641413,20958.0,20955.0,0.19459133]
[1673665123695,0.00568818,20958.0,20957.0,0.007]
[1673665123955,0.00568818,20958.0,20955.0,0.19459133]
[1673665124213,0.00568818,20958.0,20956.0,0.15709693]
[1673665124769,0.00968818,20958.0,20957.0,0.007]
[1673665125028,0.00568818,20958.0,20956.0,0.15709693]
[1673665125553,0.22491956,20959.0,20956.0,0.15709693]
[1673665125808,0.0105378,20959.0,20956.0,0.15709693]
[1673665126062,0.004,20958.0,20956.0,0.15709693]
[1673665126933,0.320743,20957.0,20956.0,0.15709693]
[1673665127119,0.22063229,20958.0,20956.0,0.15709693]
[1673665127382,0.84092029,20958.0,20956.0,0.15709693]
[1673665127644,0.320743,20957.0,20956.0,0.15709693]
[1673665127898,0.324743,20957.0,20956.0,0.15709693]
[1673665128199,0.324743,20957.0,20956.0,0.15699548]
[1673665128463,0.324743,20957.0,20955.0,0.14182516]
[1673665128722,0.205231,20956.0,20955.0,0.14182516]
[1673665128980,0.84092029,20958.0,20955.0,0.14182516]
[1673665128981,0.84492029,20958.0,20955.0,0.14182516]
[1673665129227,0.84092029,20958.0,20955.0,0.14182516]
[1673665129508,0.004,20957.0,20956.0,0.007]
[1673665129767,0.004,20957.0,20955.0,0.14182516]
[1673665130019,0.004,20956.0,20955.0,0.14182516]
[1673665130287,0.62653853,20958.0,20955.0,0.14182516]
[1673665130540,0.63053853,20958.0,20955.0,0.14182516]
[1673665131092,0.62653853,20958.0,20955.0,0.14182516]
[1673665131345,0.320743,20957.0,20955.0,0.14182516]
[1673665131590,0.0073352,20957.0,20953.0,0.14291428]
[1673665131862,0.51146895,20956.0,20952.0,0.14291428]
[1673665132345,0.51146895,20956.0,20951.0,0.54554103]
[1673665132346,0.39595695,20955.0,20951.0,0.54554103]
[1673665132347,0.205231,20955.0,20951.0,0.33116962]
[1673665132631,0.51146895,20954.0,20953.0,0.09]
[1673665132888,1.34625671,20954.0,20950.0,0.10947628]
[1673665133152,0.205231,20953.0,20952.0,0.141]
[1673665133409,0.8324036,20953.0,20950.0,0.10947628]
[1673665133658,0.320743,20952.0,20950.0,0.10947628]
[1673665133913,0.81116195,20953.0,20950.0,0.10947628]
[1673665133914,0.205231,20951.0,20950.0,0.10947628]
[1673665134162,0.320743,20951.0,20950.0,0.10947628]
[1673665134425,1.2465177,20953.0,20950.0,0.10947628]
[1673665134734,0.6260777,20953.0,20950.0,0.35656853]
[1673665134939,0.6260777,20953.0,20950.0,0.27262814]
[1673665135203,0.0056417,20953.0,20950.0,0.27262814]
[1673665135718,0.0056417,20953.0,20950.0,0.55654242]
[1673665136028,0.0056417,20953.0,20950.0,0.41554242]
[1673665136237,0.0056417,20953.0,20950.0,0.55654242]
[1673665136497,0.00745157,20954.0,20951.0,0.29515571]
[1673665136762,0.0062452,20953.0,20951.0,0.14291428]
[1673665137028,0.0062452,20953.0,20950.0,0.39339056]
[1673665137506,0.0062452,20953.0,20950.0,0.25047628]
[1673665137509,0.0062452,20953.0,20950.0,0.10947628]
[1673665137763,0.0012452,20953.0,20950.0,0.10947628]
[1673665139032,0.0012452,20953.0,20950.0,0.25047628]
[1673665139537,0.19197115,20953.0,20950.0,0.25047628]
[1673665139841,0.19072595,20953.0,20950.0,0.25047628]
[1673665140114,0.620439,20953.0,20950.0,0.25047628]
[1673665141673,0.1265,20951.0,20950.0,0.25047628]
[1673665141928,0.2,20950.0,20948.0,0.00925033]
[1673665142194,2.88945589,20949.0,20948.0,0.00925033]
[1673665142689,3.14126635,20949.0,20948.0,0.00925033]
[1673665142953,3.22001389,20949.0,20948.0,0.02125033]
[1673665143222,2.182405,20949.0,20948.0,0.00925033]
[1673665143480,2.186405,20949.0,20948.0,0.02125033]
[1673665143829,1.565851,20949.0,20948.0,0.02125033]
[1673665144553,0.004,20949.0,20948.0,0.10519072]
[1673665144811,0.004,20949.0,20948.0,0.20134784]
[1673665145347,0.620454,20953.0,20948.0,0.18934784]
[1673665145609,0.137,20949.0,20948.0,0.19334784]
[1673665145868,0.137,20949.0,20948.0,0.18934784]
[1673665146131,0.142,20949.0,20948.0,0.21334784]
[1673665146401,0.62042,20954.0,20948.0,0.20435539]
[1673665146658,6e-05,20952.0,20949.0,0.08394039]
[1673665146908,6e-05,20952.0,20948.0,0.20435539]
[1673665147172,0.054,20949.0,20948.0,0.20935539]
[1673665148196,0.747891,20955.0,20949.0,9.61e-05]
[1673665148460,0.620349,20956.0,20950.0,0.21144039]
[1673665148713,0.620349,20956.0,20951.0,0.23546233]
[1673665149237,0.332,20955.0,20951.0,0.15152194]
[1673665149492,0.320743,20954.0,20951.0,0.23546233]
[1673665149754,0.620412,20954.0,20951.0,0.15152194]
[1673665150019,0.620412,20954.0,20949.0,9.61e-05]
[1673665150564,0.71146895,20953.0,20949.0,0.19788161]
[1673665150566,0.39072595,20953.0,20949.0,0.19788161]
[1673665150824,0.320743,20952.0,20949.0,0.19288161]
[1673665151088,0.81117195,20953.0,20951.0,0.004]
[1673665151089,0.620446,20953.0,20951.0,0.004]
[1673665151346,0.620412,20954.0,20948.0,0.23806033]
[1673665151347,0.620412,20954.0,20948.0,0.00925033]
[1673665151640,0.620412,20954.0,20949.0,0.005]
[1673665151641,0.81116195,20953.0,20949.0,0.005]
[1673665151905,0.00666289,20952.0,20949.0,0.15792475]
[1673665152165,0.13466289,20952.0,20949.0,0.16292475]
[1673665152420,0.00666289,20952.0,20949.0,0.15792475]
[1673665152981,0.620412,20954.0,20950.0,0.19947862]
[1673665153245,0.620406,20955.0,20952.0,0.1541279]
[1673665153246,0.00663925,20955.0,20952.0,0.1541279]
[1673665153500,0.620364,20956.0,20952.0,0.23806829]
[1673665153755,0.62611902,20956.0,20953.0,0.08394039]
[1673665154010,0.00575502,20956.0,20954.0,0.1472106]
[1673665154273,6e-05,20957.0,20954.0,0.23115099]
[1673665154531,0.00543103,20957.0,20954.0,0.23115099]
[1673665154788,0.054,20956.0,20954.0,0.1472106]
[1673665155045,0.00543103,20957.0,20954.0,0.1472106]
[1673665155297,0.054,20956.0,20954.0,0.1522106]
[1673665155587,0.00543103,20957.0,20954.0,0.1472106]
[1673665155809,0.05937103,20957.0,20954.0,0.1522106]
[1673665156576,0.05937103,20957.0,20955.0,0.1932749]
[1673665156888,0.05937103,20957.0,20954.0,0.005]
[1673665156889,0.674317,20957.0,20954.0,0.005]
[1673665157104,0.32772024,20956.0,20954.0,0.005]
[1673665157384,0.205231,20955.0,20954.0,0.005]
[1673665157652,0.205231,20955.0,20952.0,0.15601155]
[1673665157904,0.19072595,20955.0,20952.0,0.15601155]
[1673665158385,0.62732524,20956.0,20952.0,0.15601155]
[1673665158386,0.06097724,20956.0,20954.0,0.005]
[1673665158652,0.00754275,20957.0,20954.0,0.22480943]
[1673665158913,0.011,20955.0,20954.0,0.22480943]
[1673665159167,0.011,20955.0,20952.0,0.23929111]
[1673665159168,0.01699876,20955.0,20952.0,0.23929111]
[1673665159477,0.20772471,20955.0,20952.0,0.23929111]
[1673665159700,0.01699876,20955.0,20952.0,0.23929111]
[1673665159968,0.00599876,20955.0,20954.0,0.005]
[1673665160228,0.00599876,20955.0,20953.0,0.14480901]
[1673665160491,0.01699876,20955.0,20953.0,0.14480901]
[1673665160750,0.00599876,20955.0,20953.0,0.14480901]
[1673665161003,0.13399876,20955.0,20954.0,0.005]
[1673665161264,0.00599876,20955.0,20953.0,0.14480901]
[1673665161557,0.00599876,20955.0,20953.0,0.14980901]
[1673665161558,0.05999876,20955.0,20953.0,0.14980901]
[1673665161812,0.00599876,20955.0,20953.0,0.14480901]
[1673665162338,0.0066481,20954.0,20950.0,0.744656]
[1673665162591,0.51146895,20953.0,20950.0,0.186456]
[1673665162844,0.19072595,20953.0,20950.0,0.186456]
[1673665163630,0.6270651,20954.0,20950.0,0.186456]
[1673665163893,0.014,20953.0,20950.0,0.227456]
[1673665164406,0.620417,20954.0,20948.0,0.00925033]
[1673665164673,0.81116395,20953.0,20950.0,0.005]
[1673665164932,0.1275,20951.0,20950.0,0.005]
[1673665165186,1.573721,20951.0,20950.0,0.005]
[1673665165997,1.573721,20951.0,20948.0,0.00925033]
[1673665166214,0.320743,20950.0,20948.0,0.00925033]
[1673665166470,0.825785,20949.0,20948.0,0.00925033]
[1673665167314,0.825785,20949.0,20948.0,0.01325033]
[1673665167574,0.825785,20949.0,20948.0,0.00925033]
[1673665167575,0.83275831,20949.0,20948.0,0.00925033]
[1673665167834,0.825785,20949.0,20948.0,0.00925033]
[1673665168379,0.83237075,20949.0,20948.0,0.00925033]
[1673665168734,0.96937075,20949.0,20948.0,0.01325033]
[1673665170736,1.162785,20949.0,20948.0,0.01316268]
[1673665170990,1.92577345,20949.0,20948.0,0.01316268]
[1673665171245,2.46996259,20949.0,20948.0,0.01316268]
[1673665171499,2.08933009,20949.0,20948.0,0.01316268]
[1673665171757,1.95233009,20949.0,20948.0,0.00916268]
[1673665172021,2.08933009,20949.0,20948.0,0.00916268]
[1673665172292,2.23807271,20949.0,20948.0,0.00916268]
[1673665172562,2.37507271,20949.0,20948.0,0.00916268]
[1673665172824,2.23807271,20949.0,20948.0,0.00916268]
[1673665173094,2.08933009,20949.0,20948.0,0.00916268]
[1673665173355,1.73836714,20949.0,20948.0,0.00916268]
[1673665173620,1.87536714,20949.0,20948.0,0.00916268]
[1673665174147,1.480715,20949.0,20948.0,0.00916268]
[1673665174153,2.33471468,20949.0,20948.0,0.00916268]
[1673665174415,2.19771468,20949.0,20948.0,0.00916268]
[1673665174687,2.33471468,20949.0,20948.0,0.00916268]
[1673665174943,1.73833108,20949.0,20948.0,0.00916268]
[1673665175223,1.480715,20949.0,20948.0,0.00916268]
[1673665176766,1.8752952,20949.0,20948.0,0.00916268]
[1673665177292,1.480715,20949.0,20948.0,0.00916268]
[1673665177561,1.040285,20949.0,20948.0,0.00916268]
[1673665178911,1.240285,20949.0,20948.0,0.00916268]
[1673665179202,1.167785,20949.0,20948.0,0.00916268]
[1673665179713,1.1748822,20949.0,20948.0,0.00916268]
[1673665179978,1.167785,20949.0,20948.0,0.00916268]
[1673665180502,1.17475465,20949.0,20948.0,0.00916268]
[1673665181576,1.17447174,20949.0,20948.0,0.00916268]
[1673665182355,0.912785,20949.0,20948.0,0.09310307]
[1673665182621,0.137,20949.0,20948.0,0.1675976]
[1673665183978,0.62623238,20951.0,20948.0,0.1675976]
[1673665184250,0.113,20949.0,20948.0,0.1695976]
[1673665184799,0.113,20949.0,20948.0,0.01116268]
[1673665184800,0.113,20949.0,20948.0,0.2112139]
[1673665185058,0.00637875,20950.0,20948.0,0.2673079]
[1673665185318,0.00637875,20950.0,20948.0,0.2092139]
[1673665185571,0.00637875,20950.0,20948.0,0.00916268]
[1673665185908,0.62690375,20950.0,20948.0,0.00916268]
[1673665186407,0.620525,20950.0,20949.0,0.1477573]
[1673665186670,0.620499,20951.0,20949.0,0.1477573]
[1673665187183,0.62636957,20952.0,20949.0,0.1477573]
[1673665187454,0.113,20950.0,20949.0,0.23169769]
[1673665187721,0.62636957,20952.0,20949.0,0.1477573]
[1673665187982,0.14163261,20951.0,20949.0,0.1497573]
[1673665188248,0.00663261,20951.0,20949.0,0.1477573]
[1673665188514,0.00663261,20951.0,20949.0,0.1497573]
[1673665189013,0.62712761,20951.0,20949.0,0.1497573]
[1673665189922,0.76212761,20951.0,20949.0,0.1497573]
[1673665190584,0.14163261,20951.0,20949.0,0.1497573]
[1673665190844,0.76212761,20951.0,20949.0,0.1497573]
[1673665192447,0.135,20951.0,20949.0,0.1497573]
[1673665192669,0.135,20951.0,20950.0,0.164623]
[1673665193426,0.135,20951.0,20949.0,0.002]
[1673665193721,0.320733,20950.0,20949.0,0.002]
[1673665193941,0.320733,20950.0,20948.0,0.16489537]
[1673665193942,0.941258,20950.0,20948.0,0.16489537]
[1673665194205,0.620525,20950.0,20948.0,0.16489537]
[1673665194731,0.620525,20950.0,20949.0,0.002]
[1673665195038,0.620525,20950.0,20948.0,0.16489537]
[1673665195303,0.113,20950.0,20949.0,0.20062146]
[1673665195563,0.113,20950.0,20949.0,0.22532519]
[1673665195816,0.113,20950.0,20949.0,0.20062146]
[1673665197169,0.620481,20952.0,20949.0,0.20062146]
[1673665197422,0.135,20950.0,20949.0,0.20262146]
[1673665198162,0.00613905,20951.0,20949.0,0.19562146]
[1673665198425,0.00613905,20951.0,20949.0,0.19762146]
[1673665198927,0.00613905,20951.0,20949.0,0.19562146]
[1673665199176,0.135,20950.0,20949.0,0.19762146]
[1673665199933,0.00613905,20951.0,20949.0,0.19562146]
[1673665200199,0.14113905,20951.0,20949.0,0.19562146]
[1673665200445,0.132,20951.0,20950.0,0.14872502]
[1673665200708,0.132,20951.0,20950.0,0.20681202]
[1673665200991,0.00503891,20953.0,20950.0,0.20681202]
[1673665201239,0.135,20951.0,20950.0,0.23266541]
[1673665201533,1.240775,20955.0,20950.0,0.23266541]
[1673665201534,1.24726594,20955.0,20951.0,0.18039028]
[1673665201794,1.24698094,20955.0,20951.0,0.26433067]
[1673665202315,0.00520894,20954.0,20951.0,0.26433067]
[1673665202574,0.00491786,20954.0,20951.0,0.18039028]
[1673665202881,0.1265,20952.0,20950.0,0.002]
[1673665203135,0.941228,20951.0,20950.0,0.002]
[1673665203392,0.941228,20951.0,20950.0,0.21498077]
[1673665203393,0.320733,20951.0,20950.0,0.21498077]
[1673665203651,0.620478,20952.0,20950.0,0.21498077]
[1673665203904,0.620478,20952.0,20950.0,0.21298077]
[1673665204179,0.620478,20952.0,20951.0,0.002]
[1673665204450,0.00633195,20951.0,20948.0,0.18718127]
[1673665204711,0.3330579,20951.0,20950.0,0.002]
[1673665204971,0.00633195,20951.0,20948.0,0.18718127]
[1673665205232,0.00633195,20951.0,20949.0,0.1790587]
[1673665205957,0.62682895,20951.0,20948.0,0.18577883]
[1673665206217,0.320733,20950.0,20949.0,0.002]
[1673665206464,0.32691595,20950.0,20949.0,0.002]
[1673665206974,0.32691595,20950.0,20948.0,0.00916268]
[1673665207230,0.76170795,20950.0,20948.0,0.00916268]
[1673665207482,0.384863,20949.0,20948.0,0.00916268]
[1673665207733,0.320733,20949.0,20948.0,0.00916268]
[1673665208519,0.62713324,20950.0,20948.0,0.00916268]
[1673665208774,0.73813324,20950.0,20948.0,0.01116268]
[1673665209026,0.00569483,20949.0,20948.0,0.00916268]
[1673665209355,0.11669483,20949.0,20948.0,0.01116268]
[1673665209533,0.00569483,20949.0,20948.0,0.00916268]
[1673665209809,0.00569483,20949.0,20948.0,0.01116268]
[1673665210320,0.62624883,20949.0,20948.0,0.00916268]
[1673665210604,1.05798183,20949.0,20948.0,0.01116268]
[1673665211092,0.11669483,20949.0,20948.0,0.01116268]
[1673665211599,0.620497,20951.0,20948.0,0.06719268]
[1673665211858,0.62668945,20951.0,20948.0,0.29822082]
[1673665212113,0.62668945,20951.0,20948.0,0.21628043]
[1673665212382,0.111,20949.0,20948.0,0.21428043]
[1673665212633,0.111,20949.0,20948.0,0.23128043]
[1673665212890,0.111,20949.0,20948.0,0.28937443]
[1673665213230,0.01419245,20951.0,20948.0,0.27437443]
[1673665213231,0.00619245,20951.0,20948.0,0.27437443]
[1673665213422,0.111,20951.0,20949.0,0.2]
[1673665213673,0.111,20951.0,20950.0,0.058085]
[1673665213933,0.111,20951.0,20949.0,0.2]
[1673665214179,0.111,20951.0,20950.0,0.18700965]
[1673665214951,0.00508505,20952.0,20950.0,0.18700965]
[1673665215213,0.14101574,20951.0,20950.0,0.002]
[1673665216764,0.136,20951.0,20950.0,0.05803]
[1673665217328,0.136,20951.0,20950.0,0.28071376]
[1673665218138,0.136,20951.0,20950.0,0.22263076]
[1673665218662,0.136,20951.0,20950.0,0.28071376]
[1673665220461,0.136,20951.0,20950.0,0.47339869]
[1673665220712,0.136,20951.0,20950.0,1.23726992]
[1673665221237,0.136,20951.0,20950.0,0.47383064]
[1673665221489,0.136,20951.0,20950.0,0.61681344]
[1673665222512,0.136,20951.0,20950.0,0.40244203]
[1673665222782,0.136,20951.0,20950.0,0.25945923]
[1673665223292,0.136,20951.0,20950.0,0.40244203]
[1673665224054,0.136,20951.0,20950.0,0.33037339]
[1673665224318,0.50904768,20956.0,20951.0,0.2]
[1673665224319,0.00934211,20956.0,20951.0,0.2]
[1673665224582,0.00934211,20956.0,20955.0,0.14288805]
[1673665224894,0.00934211,20956.0,20955.0,1.11959652]
[1673665225132,0.00934211,20956.0,20955.0,0.20094805]
[1673665225388,0.01134211,20956.0,20955.0,0.20094805]
[1673665225653,0.01134211,20956.0,20955.0,0.41528013]
[1673665225922,0.00934211,20956.0,20955.0,0.41528013]
[1673665226217,0.01134211,20956.0,20955.0,0.54094805]
[1673665227006,0.00934211,20956.0,20955.0,0.20094805]
[1673665227271,0.01745137,20956.0,20955.0,0.30394805]
[1673665227552,0.01745137,20956.0,20955.0,0.16106]
[1673665228065,0.01745137,20956.0,20955.0,0.161055]
[1673665228327,0.01745137,20956.0,20955.0,0.103]
[1673665229400,0.01745137,20956.0,20955.0,0.161055]
[1673665229659,0.01134211,20956.0,20955.0,0.161055]
[1673665230944,0.01134211,20956.0,20955.0,0.103]
[1673665231737,0.01704048,20956.0,20955.0,0.103]
[1673665231995,0.01134211,20956.0,20955.0,0.103]
[1673665232256,1.0026071,20956.0,20955.0,0.103]
[1673665232502,0.99708211,20956.0,20955.0,0.103]
[1673665233299,1.19708211,20956.0,20955.0,0.103]
[1673665233559,1.19508211,20956.0,20949.0,0.54795128]
[1673665233820,0.34596895,20955.0,20949.0,0.41755959]
[1673665234089,1.26128545,20956.0,20949.0,0.41755959]
[1673665234090,1.43156695,20954.0,20949.0,0.54795128]
[1673665234349,0.19072595,20953.0,20950.0,0.19571776]
[1673665234612,1.240841,20954.0,20950.0,0.19571776]
[1673665234881,1.43156695,20954.0,20950.0,0.19571776]
[1673665235130,0.62706314,20955.0,20950.0,0.22682844]
[1673665235425,0.003,20953.0,20951.0,0.22632968]
[1673665235665,0.003,20953.0,20951.0,0.14238929]
[1673665235920,0.0083062,20953.0,20952.0,0.058072]
[1673665236962,0.0083062,20953.0,20951.0,0.14238929]
[1673665236963,0.0053062,20953.0,20951.0,0.14238929]
[1673665237221,0.00604081,20955.0,20952.0,0.82142505]
[1673665237493,0.00604081,20955.0,20952.0,0.84729344]
[1673665237743,0.034,20953.0,20952.0,0.97768513]
[1673665238020,0.01587626,20956.0,20953.0,0.14710044]
[1673665238548,0.003,20955.0,20954.0,0.058061]
[1673665239554,0.00934211,20956.0,20954.0,0.058061]
[1673665239813,0.00934211,20956.0,20953.0,0.14710044]
[1673665240081,0.00934211,20956.0,20954.0,0.058059]
[1673665240332,0.00934211,20956.0,20953.0,0.14710044]
[1673665240626,0.00934211,20956.0,20954.0,0.058059]
[1673665240836,0.00934211,20956.0,20955.0,0.16784357]
[1673665241153,0.00934211,20956.0,20955.0,0.22589957]
[1673665241407,0.00934211,20956.0,20955.0,0.25397218]
[1673665242929,0.00934211,20956.0,20955.0,0.28697218]
[1673665243436,0.00934211,20956.0,20955.0,0.25397218]
[1673665243692,0.01234211,20956.0,20955.0,0.25397218]
[1673665244198,0.01534211,20956.0,20955.0,0.39397218]
[1673665244535,0.01534211,20956.0,20955.0,0.39387284]
[1673665247334,0.01534211,20956.0,20955.0,1.01424884]
[1673665247548,0.01534211,20956.0,20955.0,1.01833266]
[1673665247803,0.01534211,20956.0,20955.0,1.16122071]
[1673665248050,0.01534211,20956.0,20955.0,1.35796009]
[1673665248302,0.01534211,20956.0,20955.0,0.96122071]
[1673665248557,0.01534211,20956.0,20955.0,1.11749878]
[1673665249300,0.01534211,20956.0,20955.0,0.96122071]
[1673665249786,0.01534211,20956.0,20955.0,1.15968794]
[1673665250011,0.01534211,20956.0,20955.0,1.35968794]
[1673665250485,0.01534211,20956.0,20955.0,1.37555279]
[1673665250748,0.01534211,20956.0,20955.0,2.12244254]
[1673665251004,0.01534211,20956.0,20955.0,1.57610787]
[1673665251279,0.01534211,20956.0,20955.0,1.78999644]
[1673665251792,0.01534211,20956.0,20955.0,1.64681396]
[1673665252059,0.01534211,20956.0,20955.0,1.78999644]
[1673665252888,0.01534211,20956.0,20955.0,1.95422033]
[1673665253135,0.01534211,20956.0,20955.0,2.09683507]
[1673665253653,0.01534211,20956.0,20955.0,1.95422033]
[1673665254186,0.01534211,20956.0,20955.0,2.29479734]
[1673665254441,0.01534211,20956.0,20955.0,2.08090877]
[1673665254739,0.01534211,20956.0,20955.0,2.24447529]
[1673665254943,0.01534211,20956.0,20955.0,2.08090877]
[1673665255200,0.01534211,20956.0,20955.0,2.2809768]
[1673665255475,0.01534211,20956.0,20955.0,1.20451968]
[1673665256036,0.01534211,20956.0,20955.0,0.99058367]
[1673665256297,0.01534211,20956.0,20955.0,1.20451968]
[1673665256807,0.01534211,20956.0,20955.0,1.38099886]
[1673665257066,0.01534211,20956.0,20955.0,1.52409329]
[1673665257359,0.01534211,20956.0,20955.0,1.46833266]
[1673665257608,0.01534211,20956.0,20955.0,1.66833266]
[1673665258378,0.01534211,20956.0,20955.0,2.622926]
[1673665259153,0.01534211,20956.0,20955.0,3.05159016]
[1673665259420,0.01534211,20956.0,20955.0,2.76859841]
[1673665259678,0.01534211,20956.0,20955.0,2.622926]
[1673665260116,0.01534211,20956.0,20955.0,2.78548459]
[1673665260373,0.01534211,20956.0,20955.0,2.58548459]
[1673665260618,0.01534211,20956.0,20955.0,2.422926]
[1673665260887,0.01534211,20956.0,20955.0,2.62372294]
[1673665261138,0.01534211,20956.0,20955.0,2.58034249]
[1673665261393,0.01534211,20956.0,20955.0,1.62574284]
[1673665262166,0.01534211,20956.0,20955.0,1.94553435]
[1673665262425,0.01534211,20956.0,20955.0,3.6151686]
[1673665262670,0.01534211,20956.0,20955.0,3.18702985]
[1673665262922,0.01534211,20956.0,20955.0,3.57757712]
[1673665263171,0.01534211,20956.0,20955.0,3.54488441]
[1673665263424,0.01534211,20956.0,20955.0,3.57757712]
[1673665263929,0.01534211,20956.0,20955.0,3.18702985]
[1673665264180,0.01534211,20956.0,20955.0,3.77357273]
[1673665264452,0.01534211,20956.0,20955.0,2.5812478]
[1673665264954,0.01534211,20956.0,20955.0,3.00947833]
[1673665265703,0.01534211,20956.0,20955.0,2.5812478]
[1673665265959,0.01534211,20956.0,20955.0,3.00947833]
[1673665266215,0.01526697,20956.0,20955.0,3.00947833]
[1673665266996,0.01526697,20956.0,20955.0,3.32836767]
[1673665267852,0.01526697,20956.0,20955.0,3.50758477]
[1673665268412,0.01526697,20956.0,20955.0,3.32836767]
[1673665269212,0.01526697,20956.0,20955.0,3.49014813]
[1673665269473,0.01526697,20956.0,20955.0,4.2102116]
[1673665270876,0.01526697,20956.0,20955.0,4.17744569]
[1673665271401,0.00926697,20956.0,20955.0,4.0701384]
[1673665271948,0.00926697,20956.0,20955.0,3.43831781]
[1673665272206,0.00926697,20956.0,20955.0,3.57731781]
[1673665272461,0.00926697,20956.0,20955.0,3.43831781]
[1673665272741,0.00926697,20956.0,20955.0,3.57631781]
[1673665273001,0.00926697,20956.0,20955.0,5.00780464]
[1673665273293,0.00988378,20958.0,20956.0,0.2]
[1673665273550,0.00988378,20958.0,20957.0,2.98282916]
[1673665273816,0.00988378,20958.0,20957.0,4.02807166]
[1673665274383,7.8e-07,20958.0,20957.0,4.02807166]
[1673665274649,0.0105378,20959.0,20958.0,0.8375]
[1673665274902,0.0105378,20959.0,20958.0,3.56763444]
[1673665275169,0.0105378,20959.0,20958.0,3.23422519]
[1673665275620,0.0105378,20959.0,20958.0,2.56483248]
[1673665275877,0.0105378,20959.0,20958.0,3.12695609]
[1673665276393,0.0105378,20959.0,20958.0,3.75829707]
[1673665277692,0.20126375,20959.0,20958.0,3.36786617]
[1673665278003,0.0105378,20959.0,20958.0,3.02145581]
[1673665278221,0.0105378,20959.0,20958.0,3.02149661]
[1673665278999,0.0105378,20959.0,20958.0,2.12801844]
[1673665279000,0.20126375,20959.0,20958.0,2.12801844]
[1673665279308,0.0105378,20959.0,20958.0,1.45838115]
[1673665279566,0.0105378,20959.0,20958.0,1.17341565]
[1673665280332,0.0105378,20959.0,20958.0,1.45842736]
[1673665280896,0.0105378,20959.0,20958.0,1.45842507]
[1673665281176,0.0105378,20959.0,20958.0,1.17341565]
[1673665281430,0.0105378,20959.0,20958.0,1.33962724]
[1673665282470,0.0105378,20959.0,20958.0,1.62467653]
[1673665282973,0.0105378,20959.0,20958.0,1.33962724]
[1673665283499,0.0105378,20959.0,20958.0,1.62467652]
[1673665283801,0.01576068,20959.0,20958.0,0.69578392]
[1673665284045,0.01576068,20959.0,20958.0,0.35279464]
[1673665284310,0.01576068,20959.0,20958.0,0.55328282]
[1673665285081,0.01576068,20959.0,20958.0,0.41073464]
[1673665285600,0.01576068,20959.0,20958.0,0.28156698]
[1673665285867,0.01576068,20959.0,20958.0,0.139]
[1673665286104,0.14326068,20959.0,20958.0,0.139]
[1673665286612,0.14326068,20959.0,20956.0,0.35636162]
[1673665286868,0.14426068,20959.0,20958.0,0.093]
[1673665287652,0.14426068,20959.0,20956.0,0.35636162]
[1673665287653,0.14326068,20959.0,20956.0,0.35636162]
[1673665287904,0.14326068,20959.0,20958.0,0.021]
[1673665288485,0.46398468,20959.0,20958.0,0.021]
[1673665288676,0.46398468,20959.0,20956.0,0.14256698]
[1673665288950,0.155353,20958.0,20956.0,0.14256698]
[1673665289222,0.15626068,20959.0,20956.0,0.14256698]
[1673665289485,0.16926068,20959.0,20958.0,0.007]
[1673665290007,0.48998468,20959.0,20958.0,0.007]
[1673665290269,0.4847618,20959.0,20958.0,0.007]
[1673665290522,0.5587618,20959.0,20955.0,1.00636162]
[1673665290790,0.1272,20957.0,20956.0,0.021]
[1673665291285,0.1272,20957.0,20955.0,0.79256698]
[1673665291802,0.18163,20956.0,20955.0,0.65]
[1673665292043,0.648224,20956.0,20955.0,0.65]
[1673665292322,1.268571,20956.0,20955.0,0.65]
[1673665293337,1.27484801,20956.0,20955.0,0.65]
[1673665293664,1.268571,20956.0,20955.0,0.65]
[1673665293832,1.28650386,20956.0,20955.0,0.65]
[1673665294077,1.27350386,20956.0,20955.0,0.65]
[1673665294327,1.08650386,20956.0,20955.0,0.66]
[1673665294588,1.08650386,20956.0,20955.0,0.65]
[1673665294589,0.46615686,20956.0,20955.0,0.65]
[1673665294899,0.03093286,20956.0,20955.0,0.661]
[1673665295122,0.04959286,20956.0,20955.0,0.65]
[1673665295385,0.33865686,20956.0,20955.0,0.66]
[1673665295645,0.01793286,20956.0,20955.0,0.65]
[1673665295917,0.01793286,20956.0,20955.0,0.671]
[1673665296191,0.33865686,20956.0,20955.0,0.671]
[1673665296956,0.32565686,20956.0,20955.0,0.65]
[1673665297216,0.04959286,20956.0,20955.0,0.671]
[1673665297476,0.1275,20957.0,20955.0,0.671]
[1673665297978,0.00506212,20958.0,20956.0,0.18416107]
[1673665299544,0.14309584,20959.0,20956.0,0.18416107]
[1673665300293,0.01851971,20958.0,20956.0,0.18416107]
[1673665300559,0.013,20958.0,20956.0,0.18416107]
[1673665300827,0.0105378,20959.0,20957.0,0.057951]
[1673665301083,0.0105378,20959.0,20957.0,0.620301]
[1673665301352,0.0105378,20959.0,20958.0,0.057941]
[1673665302388,0.0105378,20959.0,20958.0,0.678229]
[1673665303205,0.0105378,20959.0,20958.0,0.83156605]
[1673665303471,0.0115378,20959.0,20958.0,0.97256605]
[1673665307579,0.0115378,20959.0,20958.0,0.819229]
[1673665307839,0.0115378,20959.0,20958.0,1.10654142]